bitfinex-derivatives/quotes_BTCF0:USTF0_20250907
["timestamp","ask_amount","ask_price","bid_price","bid_amount"]
[1757257027768,0.1260644,111200.0,111190.0,0.40175261]
[1757257032676,0.1260644,111200.0,111190.0,0.23979404]
[1757257033378,0.1260644,111200.0,111190.0,0.40175261]
[1757257036273,0.32427463,111200.0,111190.0,0.4017488]
[1757257036679,0.32427463,111200.0,111190.0,0.23979023]
[1757257037480,0.1260644,111200.0,111190.0,0.23979023]
[1757257037692,0.32427463,111200.0,111190.0,0.23979023]
[1757257037982,0.32427463,111200.0,111190.0,0.04158]
[1757257038181,0.32427463,111200.0,111190.0,0.23979023]
[1757257041890,0.32427463,111200.0,111190.0,0.25833031]
[1757257042291,0.32427463,111200.0,111190.0,0.42028888]
[1757257046190,0.32427463,111200.0,111190.0,0.25833031]
[1757257052500,0.1260644,111200.0,111190.0,0.25833031]
[1757257052700,0.32427463,111200.0,111190.0,0.25833031]
[1757257054001,0.1260644,111200.0,111190.0,0.25833031]
[1757257054201,0.32427463,111200.0,111190.0,0.25833031]
[1757257056802,0.30291463,111200.0,111190.0,0.25833031]
[1757257057204,0.32458463,111200.0,111190.0,0.25833031]
[1757257057501,0.1263744,111200.0,111190.0,0.25833031]
[1757257061898,0.1263744,111200.0,111190.0,0.06012008]
[1757257062106,0.1263744,111200.0,111190.0,0.25833031]
[1757257063707,0.4463744,111200.0,111190.0,0.25833031]
[1757257063907,0.4463744,111200.0,111190.0,0.42027664]
[1757257064403,0.1863744,111200.0,111190.0,0.42027664]
[1757257064709,0.1263744,111200.0,111190.0,0.42027664]
[1757257068213,0.09243538,111200.0,111190.0,0.42027664]
[1757257070006,0.10419531,111200.0,111190.0,0.42027664]
[1757257070609,0.10419531,111200.0,111190.0,0.25833031]
[1757257071110,0.09243538,111200.0,111190.0,0.25833031]
[1757257072310,0.09243538,111200.0,111190.0,0.46872667]
[1757257074712,0.09243538,111200.0,111190.0,0.25833031]
[1757257078602,0.09243538,111200.0,111190.0,0.42021497]
[1757257079319,0.09243538,111200.0,111190.0,0.25833031]
[1757257080013,0.07139395,111200.0,111190.0,0.61841951]
[1757257080812,0.07139395,111200.0,111190.0,0.45654054]
[1757257081020,0.07139395,111200.0,111190.0,0.54647064]
[1757257082113,0.07139395,111200.0,111190.0,0.756867]
[1757257083016,0.07139395,111200.0,111190.0,1.74072597]
[1757257083419,0.07139395,111200.0,111190.0,1.53032961]
[1757257084614,0.07139395,111200.0,111190.0,1.36851064]
[1757257086524,0.07139395,111200.0,111190.0,1.53033267]
[1757257087321,0.07139395,111200.0,111190.0,1.36851064]
[1757257089125,0.07139395,111200.0,111190.0,1.53032327]
[1757257089724,0.07139395,111200.0,111190.0,1.54198508]
[1757257090719,0.07139395,111200.0,111190.0,1.53032327]
[1757257092224,0.07139395,111200.0,111190.0,1.36851064]
[1757257093418,0.07139395,111200.0,111190.0,1.38008459]
[1757257093617,0.07139395,111200.0,111190.0,1.36851064]
[1757257097629,0.07139395,111200.0,111190.0,1.38024859]
[1757257097822,0.07139395,111200.0,111190.0,1.59064495]
[1757257098423,0.07139395,111200.0,111190.0,1.39238765]
[1757257099429,0.07139395,111200.0,111190.0,1.3806497]
[1757257099730,0.07139395,111200.0,111190.0,0.5586097]
[1757257099926,0.07139395,111200.0,111190.0,1.3802497]
[1757257100329,0.07139395,111200.0,111190.0,1.39174633]
[1757257103330,0.07139395,111200.0,111190.0,0.5586097]
[1757257103734,0.07139395,111200.0,111190.0,1.3801297]
[1757257104527,0.07139395,111200.0,111190.0,1.39190631]
[1757257105122,0.07139395,111200.0,111190.0,1.18150995]
[1757257108340,0.07139395,111200.0,111190.0,1.16973334]
[1757257112441,0.07139395,111200.0,111190.0,1.18099705]
[1757257113540,0.00013484,111200.0,111190.0,1.54099705]
[1757257113745,0.00013484,111200.0,111190.0,1.18099705]
[1757257114549,0.00013484,111200.0,111190.0,1.55099705]
[1757257114745,0.00013484,111200.0,111190.0,1.18099705]
[1757257117252,0.02277,111210.0,111200.0,0.03487]
[1757257117551,0.38267,111210.0,111200.0,0.23303316]
[1757257118850,0.38267,111210.0,111200.0,0.23752316]
[1757257125762,0.38267,111210.0,111200.0,0.39944418]
[1757257127464,0.38267,111210.0,111200.0,0.23752316]
[1757257131272,0.38267,111210.0,111200.0,0.39944809]
[1757257132070,0.38267,111210.0,111200.0,0.23752316]
[1757257132363,0.38267,111210.0,111200.0,0.03936]
[1757257132578,0.58083316,111210.0,111200.0,0.20128934]
[1757257132960,0.83083316,111210.0,111200.0,0.20128934]
[1757257136471,0.84303316,111210.0,111200.0,0.18843934]
[1757257136768,0.84303316,111210.0,111200.0,0.00449]
[1757257137466,0.84303316,111210.0,111200.0,0.02651]
[1757257140467,0.84303316,111210.0,111200.0,0.00449]
[1757257140978,0.84303316,111210.0,111200.0,0.02651]
[1757257143873,0.86412418,111210.0,111200.0,0.00449]
[1757257145180,0.86412418,111210.0,111200.0,0.02659]
[1757257149481,0.86412418,111210.0,111200.0,0.00449]
[1757257151581,0.86412418,111210.0,111200.0,0.02659]
[1757257151982,0.86412418,111210.0,111200.0,0.18851934]
[1757257153185,0.66596102,111210.0,111200.0,0.18851934]
[1757257153379,0.86412418,111210.0,111200.0,0.18851934]
[1757257153579,0.65376102,111210.0,111200.0,0.20247934]
[1757257153780,1.47412102,111210.0,111200.0,0.20247934]
[1757257154383,0.65376102,111210.0,111200.0,0.20247934]
[1757257154778,1.47404102,111210.0,111200.0,0.20247934]
[1757257155282,1.47404102,111210.0,111200.0,0.04055]
[1757257158290,1.67223718,111210.0,111200.0,0.23874616]
[1757257161590,1.67223718,111210.0,111200.0,0.4006755]
[1757257163487,1.47404102,111210.0,111200.0,0.4006755]
[1757257163695,1.67223718,111210.0,111200.0,0.4006755]
[1757257170898,0.85195718,111210.0,111200.0,0.4006755]
[1757257171099,1.67187718,111210.0,111200.0,0.4006755]
[1757257173696,0.85195718,111210.0,111200.0,0.4006755]
[1757257173898,1.67183718,111210.0,111200.0,0.4006755]
[1757257174099,1.42183718,111210.0,111200.0,0.4006755]
[1757257174703,1.42183718,111210.0,111200.0,0.23874616]
[1757257175605,0.60195718,111210.0,111200.0,0.23874616]
[1757257175802,1.42179718,111210.0,111200.0,0.23874616]
[1757257182611,1.42179718,111210.0,111200.0,0.40068624]
[1757257191514,1.42179718,111210.0,111200.0,0.23874616]
[1757257191715,1.40070616,111210.0,111200.0,0.40068444]
[1757257192018,1.40070616,111210.0,111200.0,0.40168444]
[1757257194217,1.40070616,111210.0,111200.0,0.23974616]
[1757257195117,1.40070616,111210.0,111200.0,0.40168472]
[1757257196416,1.04070616,111210.0,111200.0,0.40168472]
[1757257196617,1.17070616,111210.0,111200.0,0.40168472]
[1757257200621,1.18290616,111210.0,111200.0,0.20348856]
[1757257200823,1.18290616,111210.0,111200.0,0.40168472]
[1757257201124,1.17070616,111210.0,111200.0,0.40168472]
[1757257201315,1.17070616,111210.0,111200.0,0.20348856]
[1757257201625,1.17070616,111210.0,111200.0,0.40168472]
[1757257201826,1.17070616,111210.0,111200.0,0.40068472]
[1757257209725,1.16994616,111210.0,111200.0,0.40068472]
[1757257210234,1.16994616,111210.0,111200.0,0.20348856]
[1757257210436,1.16994616,111210.0,111200.0,0.40168472]
[1757257210630,1.16994616,111210.0,111200.0,0.20348856]
[1757257210933,1.16994616,111210.0,111200.0,0.40168472]
[1757257213032,1.38994616,111210.0,111200.0,0.40168472]
[1757257214735,1.38994616,111210.0,111200.0,0.40068472]
[1757257216934,1.38994616,111210.0,111200.0,0.20248856]
[1757257217136,1.38994616,111210.0,111200.0,0.40068472]
[1757257219734,0.57086616,111210.0,111200.0,0.40068472]
[1757257220036,1.38970616,111210.0,111200.0,0.40068472]
[1757257220438,1.38970558,111210.0,111200.0,0.20248856]
[1757257222138,0.57086558,111210.0,111200.0,0.20248856]
[1757257222339,1.38962558,111210.0,111200.0,0.20248856]
[1757257222540,1.41093796,111210.0,111200.0,0.20248856]
[1757257224642,0.59217796,111210.0,111200.0,0.20248856]
[1757257224939,1.41089796,111210.0,111200.0,0.04055]
[1757257225543,1.11089796,111210.0,111200.0,0.04055]
[1757257226146,1.11089796,111210.0,111200.0,0.20248838]
[1757257226844,0.29217796,111210.0,111200.0,0.20248838]
[1757257227042,1.11089796,111210.0,111200.0,0.20248838]
[1757257228044,0.29217796,111210.0,111200.0,0.20248838]
[1757257228342,1.11081796,111210.0,111200.0,0.20248838]
[1757257228838,0.91262238,111210.0,111200.0,0.20248838]
[1757257230140,0.91262238,111210.0,111200.0,0.31585432]
[1757257230445,0.09398238,111210.0,111200.0,0.15391594]
[1757257230649,0.91258238,111210.0,111200.0,0.15391594]
[1757257232142,0.09398238,111210.0,111200.0,0.15391594]
[1757257232345,0.91254238,111210.0,111200.0,0.15391594]
[1757257233243,1.11073796,111210.0,111200.0,0.15391594]
[1757257233546,0.91254238,111210.0,111200.0,0.15391594]
[1757257233848,1.11073796,111210.0,111200.0,0.15391594]
[1757257234046,0.29217796,111210.0,111200.0,0.15391594]
[1757257234247,1.11069796,111210.0,111200.0,0.15391594]
[1757257236639,1.11069796,111210.0,111200.0,0.04055]
[1757257238046,0.91250238,111210.0,111200.0,0.04055]
[1757257242350,1.11069796,111210.0,111200.0,0.04055]
[1757257242943,0.91250238,111210.0,111200.0,0.04055]
[1757257245251,0.86250238,111210.0,111200.0,0.04055]
[1757257245453,1.17250238,111210.0,111200.0,0.04055]
[1757257246852,1.17250238,111210.0,111200.0,0.20250347]
[1757257248457,1.37069796,111210.0,111200.0,0.20250347]
[1757257250858,1.17250238,111210.0,111200.0,0.20250347]
[1757257260567,1.37069796,111210.0,111200.0,0.20250347]
[1757257261975,1.37069796,111210.0,111200.0,0.04055]
[1757257263268,1.37069796,111210.0,111200.0,0.20250284]
[1757257272182,1.37069796,111210.0,111200.0,0.04055]
[1757257272480,1.37069796,111210.0,111200.0,0.20250222]
[1757257278287,1.83109354,111210.0,111200.0,0.16644222]
[1757257278496,1.83109354,111210.0,111200.0,0.27981175]
[1757257278988,1.83109354,111210.0,111200.0,0.00449]
[1757257279381,1.83109354,111210.0,111200.0,0.11080814]
[1757257279581,1.83109354,111210.0,111200.0,0.09680814]
[1757257279782,1.83109354,111210.0,111200.0,0.09340814]
[1757257282293,1.83128052,111210.0,111200.0,0.09340814]
[1757257282891,1.01276052,111210.0,111200.0,0.09340814]
[1757257283092,1.83036052,111210.0,111200.0,0.09340814]
[1757257283892,1.01276052,111210.0,111200.0,0.09340814]
[1757257284092,1.83032052,111210.0,111200.0,0.09340814]
[1757257287091,1.83032052,111210.0,111190.0,0.0001]
[1757257287292,0.39657814,111200.0,111190.0,0.0001]
[1757257287487,0.39657814,111200.0,111180.0,0.03648484]
[1757257287488,0.70657814,111200.0,111180.0,0.03648484]
[1757257287684,1.01584907,111190.0,111180.0,0.03648484]
[1757257287989,0.19828907,111190.0,111180.0,0.03638484]
[1757257288184,1.00752907,111190.0,111180.0,0.14956228]
[1757257288389,0.80924,111190.0,111180.0,0.11331228]
[1757257288597,1.21409814,111190.0,111180.0,0.11330199]
[1757257288797,1.01580907,111190.0,111180.0,0.11330199]
[1757257289389,1.08773639,111190.0,111180.0,0.11330199]
[1757257289991,1.08773639,111190.0,111180.0,0.11530199]
[1757257290192,0.27021639,111190.0,111180.0,0.11530199]
[1757257290391,1.08773639,111190.0,111180.0,0.11530199]
[1757257290592,1.08773639,111190.0,111180.0,0.12828199]
[1757257290893,0.27021639,111190.0,111180.0,0.15155199]
[1757257291093,1.08777639,111190.0,111180.0,0.15155199]
[1757257291496,1.08777639,111190.0,111180.0,0.15355199]
[1757257296700,1.08777639,111190.0,111180.0,0.13028199]
[1757257297099,1.08777639,111190.0,111180.0,0.01711484]
[1757257297295,1.08777639,111190.0,111180.0,0.00413484]
[1757257298811,1.28606546,111190.0,111180.0,0.00413484]
[1757257299102,1.28606546,111190.0,111180.0,0.11722386]
[1757257304599,1.28606546,111190.0,111180.0,0.00413484]
[1757257309110,1.28606546,111190.0,111180.0,0.11738058]
[1757257310208,1.28606546,111190.0,111180.0,0.00413484]
[1757257310507,0.88948732,111190.0,111180.0,0.00413484]
[1757257310709,1.28606546,111190.0,111180.0,0.00413484]
[1757257311203,1.28606546,111190.0,111180.0,0.11739772]
[1757257311604,1.08773639,111190.0,111180.0,0.03995484]
[1757257312112,1.08773639,111190.0,111180.0,0.15322711]
[1757257312410,1.08773639,111190.0,111180.0,0.03995484]
[1757257312810,1.08773639,111190.0,111180.0,0.1532394]
[1757257313609,0.27021639,111190.0,111180.0,0.03995484]
[1757257313809,1.08773639,111190.0,111180.0,0.03995484]
[1757257317010,1.08773639,111190.0,111180.0,0.20190706]
[1757257319415,0.88944732,111190.0,111180.0,0.20190706]
[1757257319614,1.08773639,111190.0,111180.0,0.20190706]
[1757257321814,1.08773639,111190.0,111180.0,0.03995484]
[1757257324616,0.88944732,111190.0,111180.0,0.03995484]
[1757257324817,1.08773639,111190.0,111180.0,0.03995484]
[1757257329221,0.88944732,111190.0,111180.0,0.03995484]
[1757257329420,1.08773639,111190.0,111180.0,0.03995484]
[1757257330719,0.88944732,111190.0,111180.0,0.20190706]
[1757257330915,1.08773639,111190.0,111180.0,0.20190706]
[1757257331520,0.88944732,111190.0,111180.0,0.20190706]
[1757257331824,1.08773639,111190.0,111180.0,0.20190706]
[1757257335420,0.88944732,111190.0,111180.0,0.20190706]
[1757257335620,1.08773639,111190.0,111180.0,0.20190706]
[1757257337928,0.88944732,111190.0,111180.0,0.20190706]
[1757257338124,1.08773639,111190.0,111180.0,0.20190706]
[1757257339028,0.88944732,111190.0,111180.0,0.20190706]
[1757257339230,1.08773639,111190.0,111180.0,0.20190706]
[1757257340329,0.07192732,111190.0,111180.0,0.20190706]
[1757257340527,0.81744,111190.0,111180.0,0.20190706]
[1757257340726,0.89104357,111190.0,111180.0,0.8484852]
[1757257341029,1.08933264,111190.0,111180.0,0.65019613]
[1757257341224,1.08933264,111190.0,111180.0,0.48824391]
[1757257341731,0.89260357,111190.0,111180.0,0.68653298]
[1757257341928,0.819,111190.0,111180.0,0.8484852]
[1757257342330,0.819,111190.0,111180.0,0.65014116]
[1757257343637,1.03826111,111200.0,111180.0,0.65014116]
[1757257343836,0.59934111,111200.0,111190.0,0.03505]
[1757257344036,1.41800111,111200.0,111190.0,0.03505]
[1757257344539,0.59924111,111200.0,111190.0,0.03505]
[1757257344738,1.41796111,111200.0,111190.0,0.03505]
[1757257345339,1.48922016,111200.0,111190.0,0.14834665]
[1757257345741,1.48922016,111200.0,111190.0,0.03505]
[1757257346038,1.48922016,111200.0,111190.0,0.14934629]
[1757257346830,1.48922016,111200.0,111190.0,0.03605]
[1757257347034,1.48922016,111200.0,111190.0,0.03705]
[1757257347236,0.67050016,111200.0,111190.0,0.15033258]
[1757257347638,1.48898016,111200.0,111190.0,0.002]
[1757257351644,1.48898016,111200.0,111190.0,0.1152801]
[1757257352041,1.29074606,111200.0,111190.0,0.1152801]
[1757257352240,1.48898016,111200.0,111190.0,0.1152801]
[1757257353545,1.48898016,111200.0,111190.0,0.002]
[1757257356248,1.48898016,111200.0,111190.0,0.02399]
[1757257356450,1.48898016,111200.0,111190.0,0.03758]
[1757257362357,1.29074606,111200.0,111190.0,0.03758]
[1757257362652,1.48898016,111200.0,111190.0,0.03758]
[1757257363252,1.48898016,111200.0,111190.0,0.15089368]
[1757257363653,1.48898016,111200.0,111190.0,0.03758]
[1757257368757,1.29074606,111200.0,111190.0,0.03758]
[1757257368959,1.48898016,111200.0,111190.0,0.03758]
[1757257379072,0.67050016,111200.0,111190.0,0.03758]
[1757257379272,1.48886016,111200.0,111190.0,0.03758]
[1757257389482,1.29062606,111200.0,111190.0,0.03758]
[1757257389780,1.48886016,111200.0,111190.0,0.03758]
[1757257391080,1.48886016,111200.0,111190.0,0.15096241]
[1757257399385,1.50971426,111200.0,111190.0,0.15096241]
[1757257401285,1.50971426,111200.0,111190.0,0.03758]
[1757257404282,1.70803498,111200.0,111190.0,0.002]
[1757257404887,2.08803498,111200.0,111190.0,0.002]
[1757257405186,1.70803498,111200.0,111190.0,0.002]
[1757257409391,1.68702797,111200.0,111190.0,0.002]
[1757257411387,0.47211315,111200.0,111190.0,0.03858]
[1757257411594,1.68614797,111200.0,111190.0,0.03858]
[1757257412793,0.86866797,111200.0,111190.0,0.03858]
[1757257412993,1.68758797,111200.0,111190.0,0.03858]
[1757257413694,0.86866797,111200.0,111190.0,0.03858]
[1757257413895,1.68758797,111200.0,111190.0,0.03858]
[1757257431715,0.86866797,111200.0,111190.0,0.03858]
[1757257432015,1.68662797,111200.0,111190.0,0.03858]
[1757257433117,1.68650797,111200.0,111190.0,0.03858]
[1757257433415,1.68642797,111200.0,111190.0,0.03858]
[1757257436520,0.86866797,111200.0,111190.0,0.03858]
[1757257436721,1.68626797,111200.0,111190.0,0.03858]
[1757257441225,0.86866797,111200.0,111190.0,0.03858]
[1757257441422,1.68622797,111200.0,111190.0,0.03858]
[1757257441823,0.86866797,111200.0,111190.0,0.03858]
[1757257442012,1.68622797,111200.0,111190.0,0.03858]
[1757257444228,0.47211315,111200.0,111190.0,0.48685741]
[1757257444523,0.47211315,111200.0,111190.0,0.60023921]
[1757257444724,0.47211315,111200.0,111190.0,0.48685741]
[1757257445020,0.47211315,111200.0,111190.0,0.57678751]
[1757257445220,0.09211315,111200.0,111190.0,0.77506492]
[1757257445418,0.09211315,111200.0,111190.0,0.57678751]
[1757257445614,0.09211315,111200.0,111190.0,0.94678751]
[1757257445814,0.09211315,111200.0,111190.0,0.57678751]
[1757257446324,0.09211315,111200.0,111190.0,0.73849685]
[1757257447224,0.09211315,111200.0,111190.0,0.57678751]
[1757257452624,0.09211315,111200.0,111190.0,0.73828132]
[1757257457030,0.41211315,111200.0,111190.0,0.73828132]
[1757257457331,0.41211315,111200.0,111190.0,0.57678751]
[1757257458231,0.41211315,111200.0,111190.0,0.3785101]
[1757257458732,0.61039056,111200.0,111190.0,0.48685741]
[1757257460834,0.61039056,111200.0,111190.0,0.64827119]
[1757257466335,0.41211315,111200.0,111190.0,0.64819684]
[1757257469030,0.41211315,111200.0,111190.0,0.48678306]
[1757257469630,0.41211315,111200.0,111190.0,0.28858]
[1757257469831,0.41211315,111200.0,111190.0,0.48678306]
[1757257470833,0.41211315,111200.0,111190.0,0.28858]
[1757257471033,0.41211315,111200.0,111190.0,0.48678306]
[1757257472340,0.41211315,111200.0,111190.0,0.69717942]
[1757257474233,0.41211315,111200.0,111190.0,0.78710942]
[1757257474437,0.3974923,111200.0,111190.0,0.78710942]
[1757257476044,0.3974923,111200.0,111190.0,0.69717942]
[1757257478162,0.0774923,111200.0,111190.0,0.69717942]
[1757257478461,0.1274923,111200.0,111190.0,0.69717942]
[1757257479262,0.1274923,111200.0,111190.0,0.44717942]
[1757257480264,0.0774923,111200.0,111190.0,0.53710942]
[1757257483360,0.0774923,111200.0,111190.0,0.44717942]
[1757257485062,0.0874923,111200.0,111190.0,0.44717942]
[1757257496980,0.0874923,111200.0,111190.0,0.24897636]
[1757257497276,0.0874923,111200.0,111190.0,0.44717942]
[1757257499578,0.0874923,111200.0,111190.0,0.24897636]
[1757257499775,0.28569536,111200.0,111190.0,0.24897636]
[1757257499975,0.28569536,111200.0,111190.0,0.36221834]
[1757257500279,0.72569536,111200.0,111190.0,0.03858]
[1757257500479,0.72569536,111200.0,111190.0,0.01581]
[1757257500679,0.72569536,111200.0,111190.0,0.17758426]
[1757257501581,0.72569536,111200.0,111190.0,0.01581]
[1757257502077,0.5274923,111200.0,111190.0,0.01581]
[1757257502381,0.72569536,111200.0,111190.0,0.01581]
[1757257503080,0.72569536,111200.0,111190.0,0.03759]
[1757257503280,0.72569536,111200.0,111190.0,0.19936426]
[1757257503981,0.72569536,111200.0,111190.0,0.03759]
[1757257504382,0.5274923,111200.0,111190.0,0.03759]
[1757257504674,0.2774923,111200.0,111190.0,0.23579306]
[1757257504880,0.2774923,111200.0,111190.0,0.39756732]
[1757257505078,0.2774923,111200.0,111190.0,0.19936426]
[1757257507184,0.2774923,111200.0,111190.0,0.03759]
[1757257508183,0.2774923,111200.0,111190.0,0.19936426]
[1757257512186,0.2774923,111200.0,111190.0,0.03759]
[1757257517088,0.2774923,111200.0,111190.0,0.23579306]
[1757257517880,0.2774923,111200.0,111190.0,0.03759]
[1757257520996,0.47569536,111200.0,111190.0,0.03759]
[1757257521894,0.45484126,111200.0,111190.0,0.03759]
[1757257522393,0.2566382,111200.0,111190.0,0.03759]
[1757257527494,0.2566382,111200.0,111190.0,0.19936426]
[1757257528302,0.45485906,111200.0,111190.0,0.39758512]
[1757257531905,0.45485906,111200.0,111190.0,0.416015]
[1757257535513,0.45485906,111200.0,111190.0,0.21779414]
[1757257535709,0.45485906,111200.0,111190.0,0.416015]
[1757257538513,0.65307992,111200.0,111190.0,0.19601414]
[1757257538714,0.65307992,111200.0,111190.0,0.17758426]
[1757257539017,0.65307992,111200.0,111190.0,0.16377426]
[1757257539318,0.90307992,111200.0,111190.0,0.16377426]
[1757257539514,0.65307992,111200.0,111190.0,0.00649]
[1757257541021,0.65307992,111200.0,111190.0,0.1197324]
[1757257541621,1.47487992,111200.0,111190.0,0.1197324]
[1757257542521,1.0784382,111200.0,111190.0,0.1197324]
[1757257542718,1.47487992,111200.0,111190.0,0.1197324]
[1757257544916,1.0784382,111200.0,111190.0,0.1197324]
[1757257545121,1.47511992,111200.0,111190.0,0.1197324]
[1757257546324,1.47511992,111200.0,111190.0,0.00649]
[1757257547117,1.47507992,111200.0,111190.0,0.00649]
[1757257547313,0.2566382,111200.0,111190.0,0.06001493]
[1757257548023,0.65307992,111200.0,111190.0,0.06001493]
[1757257548325,0.2566382,111200.0,111190.0,0.06001493]
[1757257548626,0.65307992,111200.0,111190.0,0.06001493]
[1757257549024,0.2566382,111200.0,111190.0,0.06001493]
[1757257549225,0.65307992,111200.0,111190.0,0.22178919]
[1757257550023,0.2566382,111200.0,111190.0,0.22178919]
[1757257550224,0.65307992,111200.0,111190.0,0.22178919]
[1757257552828,0.2566382,111200.0,111190.0,0.22178919]
[1757257553030,1.48195992,111200.0,111190.0,0.22178919]
[1757257553430,0.2566382,111200.0,111190.0,0.22178919]
[1757257553628,1.0852782,111200.0,111190.0,0.22178919]
[1757257553929,1.48171992,111200.0,111190.0,0.22178919]
[1757257554330,1.28349906,111200.0,111190.0,0.22178919]
[1757257554530,1.0852782,111200.0,111190.0,0.42001005]
[1757257554733,1.48171992,111200.0,111190.0,0.42001005]
[1757257555030,1.48171992,111200.0,111190.0,0.22178919]
[1757257557032,0.65307992,111200.0,111190.0,0.22178919]
[1757257557237,1.48223992,111200.0,111190.0,0.22178919]
[1757257557429,0.65307992,111200.0,111190.0,0.22178919]
[1757257557733,1.48195992,111200.0,111190.0,0.22178919]
[1757257558335,1.0855182,111200.0,111190.0,0.22178919]
[1757257558536,1.48195992,111200.0,111190.0,0.22178919]
[1757257558835,1.0855182,111200.0,111190.0,0.22178919]
[1757257559031,1.48195992,111200.0,111190.0,0.22178919]
[1757257559436,1.0855182,111200.0,111190.0,0.22178919]
[1757257559734,1.48195992,111200.0,111190.0,0.22178919]
[1757257560037,1.0855182,111200.0,111190.0,0.22178919]
[1757257560336,1.48195992,111200.0,111190.0,0.22178919]
[1757257561431,0.45485906,111200.0,111190.0,0.22178919]
[1757257561631,0.45485906,111200.0,111190.0,0.47178919]
[1757257561632,0.2566382,111200.0,111190.0,0.47178919]
[1757257561835,0.0566382,111200.0,111190.0,0.78326654]
[1757257562036,1.02672086,111210.0,111190.0,0.62149228]
[1757257562334,1.40724086,111210.0,111200.0,0.14834649]
[1757257562538,1.20892,111210.0,111200.0,0.34656735]
[1757257562731,0.57822086,111210.0,111200.0,0.34656735]
[1757257562927,1.40714086,111210.0,111200.0,0.34656735]
[1757257563337,1.40714086,111210.0,111200.0,0.14834649]
[1757257563837,1.40714086,111210.0,111200.0,0.15283649]
[1757257564034,1.48079575,111210.0,111200.0,0.15283649]
[1757257564639,1.48079575,111210.0,111200.0,0.20135426]
[1757257565439,1.28257489,111210.0,111200.0,0.20135426]
[1757257565737,1.48079575,111210.0,111200.0,0.20135426]
[1757257566140,1.28257489,111210.0,111200.0,0.20135426]
[1757257566340,1.48079575,111210.0,111200.0,0.03958]
[1757257566734,1.28257489,111210.0,111200.0,0.03958]
[1757257566936,1.48079575,111210.0,111200.0,0.03958]
[1757257567240,1.28257489,111210.0,111200.0,0.20135426]
[1757257567443,1.48079575,111210.0,111200.0,0.20135426]
[1757257569442,1.48079575,111210.0,111200.0,0.03958]
[1757257573650,0.65187575,111210.0,111200.0,0.23780086]
[1757257573848,1.28129489,111210.0,111200.0,0.23780086]
[1757257574148,0.65187575,111210.0,111200.0,0.23780086]
[1757257574348,1.47951575,111210.0,111200.0,0.23780086]
[1757257575048,1.47951575,111210.0,111200.0,0.39957512]
[1757257575241,0.65187575,111210.0,111200.0,0.39957512]
[1757257575642,0.65187575,111210.0,111200.0,0.20135426]
[1757257575847,0.65187575,111210.0,111200.0,0.01729]
[1757257576048,0.85009661,111210.0,111200.0,0.01729]
[1757257576449,0.65187575,111210.0,111200.0,0.01729]
[1757257576946,0.85009661,111210.0,111200.0,0.00449]
[1757257577446,0.85009661,111210.0,111200.0,0.17906426]
[1757257577641,0.85009661,111210.0,111200.0,0.20135426]
[1757257579144,0.85009661,111210.0,111200.0,0.17906426]
[1757257579343,0.45365489,111210.0,111200.0,0.17906426]
[1757257579544,0.85009661,111210.0,111200.0,0.17906426]
[1757257580546,0.85009661,111210.0,111200.0,0.20135426]
[1757257580948,0.85009661,111210.0,111200.0,0.17906426]
[1757257582548,0.85009661,111210.0,111200.0,0.20135426]
[1757257583251,0.85009661,111210.0,111200.0,0.17906426]
[1757257583453,0.85009661,111210.0,111200.0,0.20135426]
[1757257583647,0.85009661,111210.0,111200.0,0.17906426]
[1757257583847,0.85009661,111210.0,111200.0,0.20135426]
[1757257584047,0.65187575,111210.0,111200.0,0.20135426]
[1757257584951,0.85009661,111210.0,111200.0,0.20135426]
[1757257586354,0.85009661,111210.0,111200.0,0.03958]
[1757257588152,0.85009661,111210.0,111200.0,0.20135426]
[1757257589952,0.65187575,111210.0,111200.0,0.20135426]
[1757257590349,0.65188797,111210.0,111200.0,0.20135426]
[1757257591452,1.48436797,111210.0,111200.0,0.20135426]
[1757257594151,0.65188797,111210.0,111200.0,0.20135426]
[1757257594656,1.48364797,111210.0,111200.0,0.20135426]
[1757257596657,0.45365489,111210.0,111200.0,0.20135426]
[1757257596854,1.48356797,111210.0,111200.0,0.20135426]
[1757257597754,0.65188797,111210.0,111200.0,0.20135426]
[1757257597955,1.48320797,111210.0,111200.0,0.20135426]
[1757257598156,1.48320797,111210.0,111200.0,0.20235426]
[1757257598656,1.48320797,111210.0,111200.0,0.20335426]
[1757257599553,0.65188797,111210.0,111200.0,0.20335426]
[1757257599855,1.48308797,111210.0,111200.0,0.20335426]
[1757257600050,0.65188797,111210.0,111200.0,0.20335426]
[1757257600252,1.28453489,111210.0,111200.0,0.20335426]
[1757257600453,1.48276797,111210.0,111200.0,0.20335426]
[1757257601158,1.28453489,111210.0,111200.0,0.20335426]
[1757257601357,1.48276797,111210.0,111200.0,0.20335426]
[1757257601858,0.65188797,111210.0,111200.0,0.20335426]
[1757257602160,1.48272797,111210.0,111200.0,0.20335426]
[1757257602456,1.48264797,111210.0,111200.0,0.20335426]
[1757257602850,0.65188797,111210.0,111200.0,0.20335426]
[1757257603051,1.48260797,111210.0,111200.0,0.20335426]
[1757257607062,0.65188797,111210.0,111200.0,0.20335426]
[1757257607460,1.48180797,111210.0,111200.0,0.20335426]
[1757257608060,0.65188797,111210.0,111200.0,0.20335426]
[1757257608263,1.48168797,111210.0,111200.0,0.20235426]
[1757257609366,1.48168797,111210.0,111200.0,0.20335426]
[1757257610065,0.345,111210.0,111200.0,0.93974102]
[1757257610263,0.03475,111250.0,111240.0,0.02249]
[1757257610463,0.05475,111250.0,111240.0,0.13561061]
[1757257610764,0.34475,111250.0,111240.0,0.02249]
[1757257611565,0.34475,111250.0,111240.0,0.02698]
[1757257611768,0.54298308,111250.0,111240.0,0.02698]
[1757257612068,0.34475,111250.0,111240.0,0.02698]
[1757257613164,0.34475,111250.0,111240.0,0.02798]
[1757257615178,0.34475,111250.0,111240.0,0.14072059]
[1757257615577,0.34475,111250.0,111240.0,0.02798]
[1757257616282,0.34475,111250.0,111240.0,0.14068798]
[1757257617987,0.54298308,111250.0,111240.0,0.14068798]
[1757257620381,0.33144,111250.0,111240.0,0.80063414]
[1757257620587,0.0001,111260.0,111240.0,0.69228996]
[1757257620882,0.0001,111260.0,111250.0,0.34679766]
[1757257620883,0.33144,111260.0,111250.0,0.34679766]
[1757257621084,0.34475,111260.0,111250.0,0.36480749]
[1757257623486,0.33144,111260.0,111250.0,0.36480749]
[1757257624089,0.33144,111260.0,111250.0,0.36680749]
[1757257624489,0.33144,111260.0,111250.0,0.25421291]
[1757257624885,0.54239308,111260.0,111250.0,0.04249983]
[1757257625389,0.34416,111260.0,111250.0,0.04249983]
[1757257625593,0.34416,111260.0,111250.0,0.04449983]
[1757257625984,0.34416,111260.0,111250.0,0.04249983]
[1757257626192,0.34416,111260.0,111250.0,0.04349983]
[1757257626587,0.79239308,111260.0,111250.0,0.02100983]
[1757257627288,0.59416,111260.0,111250.0,0.04247983]
[1757257627482,0.79239308,111260.0,111250.0,0.04247983]
[1757257628085,0.79239308,111260.0,111250.0,0.04047983]